Cogmind - Beta 15 @@@ ROGUE MODE // 2025.07.24 @ 22:51:39 Player: Blanco! Result: Destroyed by B-75 Beast with Heavy Plasma Cannon Performance ------------- Evolutions (5) 2500 Regions Visited (10) 2000 Robots Destroyed (55) 275 Value Destroyed (1561) 1561 Prototype IDs (0) 0 Alien Tech Used (0) 0 Bonus (-124) -124 TOTAL SCORE: 6212 Bonus ------- Friendly Fire -124 Cogmind --------- Core Integrity 0/1000 Matter 253/300 Energy 100/100 System Corruption 30% Temperature Cool (12) Movement Core (700) Ox13 Location -5/Upper Caves Parts ------- > --- POWER (3) -------- (None) > --- PROPULSION (4) --- (None) > --- UTILITY (6) ------ High-capacity Storage Unit > --- WEAPON (4) ------- (None) > --- INVENTORY (20) --- (None) Peak State ------------ > --- POWER ------------ Light Deuterium Engine Micro Nuclear Core Micro Nuclear Core > --- PROPULSION ------- Aluminum Leg Flexi-carbon Leg Flexi-carbon Leg Flexi-carbon Leg > --- UTILITY ---------- High-capacity Storage Unit Microactuators Advanced ECM Suite Hardened Medium Armor Plating Hardened Medium Armor Plating Hardened Medium Armor Plating > --- WEAPON ----------- Heavy Laser Power Maul Power Maul Axe > --- INVENTORY -------- Light Nuclear Core Light Treads Light Treads Aluminum Leg Aluminum Leg Wheel Wheel Wheel Kinecellerator Microactuators Hardened Medium Armor Plating Reflective Plating Drone Bay Drone Bay Drone Bay Lightning Gun Lightning Gun Ion Cannon [Rating: 65] Favorites ----------- Power Ion Engine Engine Ion Engine Power Core Micro Nuclear Core Propulsion Aluminum Leg Treads Light Treads Leg Aluminum Leg Wheel Compact Wheel Utility High-capacity Storage Unit Device Drone Bay Storage High-capacity Storage Unit Processor Improved Melee Analysis Suite Protection Hardened Medium Armor Plating Weapon Power Maul Energy Gun Lightning Gun Energy Cannon Ion Cannon Ballistic Gun Minigun Launcher Grenade Launcher Impact Weapon Power Maul Slashing Weapon Axe Build | -11 -10 -10 -10 -9 -8 -8 -7 -6 -5 -5 ------- Run | Yrd Mat Min Exi Min Mat Sto Fac Fac Fac Upp Slots Evolved 10 | . . . . . 4 . 2 2 2 . Power 2 | . . . . . 1 . . . 1 . Propulsion 2 | . . . . . 2 . . . . . Utility 4 | . . . . . . . 2 1 1 . Weapon 2 | . . . . . 1 . . 1 . . Parts Attached 74 | 6 2 . 2 . 6 10 22 8 11 7 Power 13 | 1 . . . . 1 3 5 3 . . Engine 7 | 1 . . . . 1 1 3 1 . . Core 6 | . . . . . . 2 2 2 . . Reactor . | . . . . . . . . . . . Propulsion 19 | 2 . . . . 3 3 6 3 2 . Treads 2 | . . . . . . 2 . . . . Leg 6 | . . . . . 2 . 1 3 . . Wheel 11 | 2 . . . . 1 1 5 . 2 . Hover . | . . . . . . . . . . . Flight . | . . . . . . . . . . . Utility 24 | 1 . . 2 . 1 . 6 1 8 5 Device 12 | . . . . . . . 2 1 7 2 Storage 4 | 1 . . 2 . 1 . . . . . Processor 1 | . . . . . . . . . . 1 Hackware . | . . . . . . . . . . . Protection 7 | . . . . . . . 4 . 1 2 Artifact . | . . . . . . . . . . . Weapon 18 | 2 2 . . . 1 4 5 1 1 2 Energy Gun 6 | 2 . . . . . . 1 1 1 1 Energy Cannon 1 | . . . . . . . . . . 1 Ballistic Gun 1 | . . . . . . 1 . . . . Ballistic Cannon . | . . . . . . . . . . . Launcher 3 | . 2 . . . . 1 . . . . Special Weapon . | . . . . . . . . . . . Impact Weapon 6 | . . . . . 1 1 4 . . . Slashing Weapon 1 | . . . . . . 1 . . . . Piercing Weapon . | . . . . . . . . . . . Special Melee Weapon . | . . . . . . . . . . . Unidentified Prototypes . | . . . . . . . . . . . Corrupted Parts 3 | . . . . . . . 3 . . . System Corruption 5 | . . . . . . . 5 . . . Parts Lost 60 | . . . . . 1 11 11 . 22 15 Power 11 | . . . . . . 4 3 . 4 . Propulsion 18 | . . . . . . 4 4 . 6 4 Utility 20 | . . . . . . . 4 . 9 7 Weapon 11 | . . . . . 1 3 . . 3 4 Highest Loss Streak 11 | . . . . . 1 9 7 . 11 10 To Critical Strikes 2 | . . . . . . . . . 2 . Average Backups 10 | 3 7 8 8 9 10 18 16 14 13 1 Power . | . 1 1 1 1 . 1 . . . . Propulsion 3 | 2 4 4 4 5 6 5 3 4 6 . Utility 4 | . . . . . 1 9 9 6 4 . Weapon 2 | . 2 3 2 3 2 2 3 3 2 . Tool/Special . | . . . . . . . . . . . Unused Backups 5 | . 1 . 1 . . 3 . . . . Power 1 | . . . 1 . . . . . . . Propulsion 1 | . . . . . . 1 . . . . Utility 2 | . . . . . . 2 . . . . Weapon 1 | . 1 . . . . . . . . . Tool/Special . | . . . . . . . . . . . Average Slot Usage (%) 77 | . 85 85 85 100 87 84 83 99 75 54 Engine 4 | . 14 14 14 14 17 13 1 . 1 . Core 3 | . . . . . . 3 8 13 3 . Treads 3 | . . . . . . . 9 . . 3 Leg 6 | . . . . . . . 3 23 13 6 Wheel 10 | . 28 28 28 28 25 22 7 2 3 . Device 8 | . . . . . . . 11 6 15 12 Storage 9 | . 14 14 14 28 18 18 10 6 5 5 Protection 5 | . . . . . . . 6 20 7 3 Energy Gun 2 | . 7 . . . . . 2 5 4 3 Launcher 6 | . 21 28 28 28 17 15 . . . . Impact Weapon 8 | . . . . . 9 9 10 13 11 7 Slashing Weapon 2 | . . . . . . 1 7 6 4 . Peak Build Rating 65 | 6 6 6 7 8 13 26 38 58 65 41 Average Rating 28 | 4 6 6 6 7 11 18 31 50 49 29 On Entrance 16 | . 6 6 6 7 8 12 14 36 58 26 Naked Turns . | . . . . . . . . . . . Heaviest Build 99 | 13 16 16 32 32 59 61 84 92 99 67 Greatest Support 70 | 32 32 32 32 32 44 44 40 70 70 40 Greatest Overweight (x) 17 | . . . . . 1 2 7 3 4 17 Average Overweight (x) 1 | . . . . . . 1 1 1 1 4 Largest Inventory Capacity 20 | 8 8 8 15 15 20 20 20 20 20 20 Average Capacity 18 | 7 8 8 13 15 19 20 20 20 20 20 Most Carried 20 | 7 8 8 9 10 13 20 20 20 19 8 Average Carried 10 | 3 7 8 7 9 10 18 16 14 13 . Final Capacity 20 | 8 8 8 15 15 20 20 20 20 20 20 Final Carried 20 | 6 8 8 8 10 13 15 13 20 8 . Class Distribution -------------------- 61% | Mutant 24% | Gladiator 13% | Scavenger-Mutant Dominant Class ---------------- Mutant | -10/Materials Mutant | -10/Mines Mutant | -10/Exiles Mutant | -9/Mines Mutant | -8/Materials Mutant | -8/Storage Mutant | -7/Factory Mutant | -6/Factory Gladiator | -5/Factory Gladiator | -5/Upper Caves Resources | -11 -10 -10 -10 -9 -8 -8 -7 -6 -5 -5 ----------- Run | Yrd Mat Min Exi Min Mat Sto Fac Fac Fac Upp Matter Collected 1363 | 260 . . 50 15 29 557 173 118 100 61 Remotely . | . . . . . . . . . . . Salvage Created 2214 | . 31 . . 56 31 639 374 655 309 119 Parts 78 | . 6 . . 2 1 33 25 9 1 1 Haulers Intercepted 1 | . . . . . . 1 . . . . Recyclers Shooed . | . . . . . . . . . . . Parts Field Recycled . | . . . . . . . . . . . Retrieved Matter . | . . . . . . . . . . . Parts Self-Destructed . | . . . . . . . . . . . Prevented . | . . . . . . . . . . . Kills | -11 -10 -10 -10 -9 -8 -8 -7 -6 -5 -5 ------- Run | Yrd Mat Min Exi Min Mat Sto Fac Fac Fac Upp Combat Hostiles Destroyed 26 | . 1 . . 3 1 10 6 . 4 1 Melee 11 | . . . . . . 4 6 . 1 . AOE 11 | . 1 . . 3 1 6 . . . . Classes Destroyed 11 | . 2 . . . 2 3 1 1 2 . Worker 12 | . . . . . 1 2 3 3 3 . Builder 1 | . . . . . . . . 1 . . Hauler 1 | . . . . . . 1 . . . . Recycler 7 | . . . . . . 3 . 4 . . Operator 1 | . . . . . . 1 . . . . Watcher 6 | . 2 . . . . . 2 1 1 . Grunt 13 | . 1 . . 3 . 6 2 . 1 . Brawler 2 | . . . . . . . . . 2 . Sentry 6 | . . . . . 1 4 1 . . . Hunter 2 | . . . . . . . . . 1 1 Programmer 3 | . . . . . . . 3 . . . Thug 1 | . . . . . . . . . . 1 Best Kill Streak 12 | . 3 . . 3 1 12 4 4 4 1 Combat Bots Only 4 | . 1 . . 3 1 4 4 . 2 1 Max Kills in Single Turn 2 | . 2 . . 2 1 2 1 1 1 1 Gunslinging . | . . . . . . . . . . . Exploded 2 | . 1 . . 2 1 1 . . . . Melee 1 | . . . . . . 1 1 . 1 . Uniques/NPCs Destroyed . | . . . . . . . . . . . Combat | -11 -10 -10 -10 -9 -8 -8 -7 -6 -5 -5 -------- Run | Yrd Mat Min Exi Min Mat Sto Fac Fac Fac Upp Hostile Shots Fired 639 | . 7 . . 7 23 61 228 . 119 194 Missed 230 | . 3 . . 1 7 27 93 . 34 65 Hits 409 | . 4 . . 6 16 34 135 . 85 129 Melee 29 | . . . . . . 5 . . 24 . Projectile 380 | . 4 . . 6 16 29 135 . 61 129 AOE 1 | . . . . . . . . . 1 . Critical Strikes 13 | . . . . . . 1 2 . 6 4 Damage Taken 6767 | . 44 . . 128 240 736 1304 . 2247 2068 Core 1411 | . . . . 27 75 134 146 . 124 905 Absorbed by Shields 184 | . . . . . . . 184 . . . Ignored by Resistances 5 | . . . . . . . . . . 5 Regen/Repaired (Parts) 45 | . . . . . . . . . 45 . Core Remaining (%) 86 | 100 . . . 89 . 62 79 100 . . Volleys Fired 33 | . 2 . . 2 5 16 4 1 1 2 Largest 2 | . 2 . . 2 2 2 1 1 1 1 Hottest 69 | . 60 . . 60 60 60 55 69 69 55 Shots Fired 59 | . 4 . . 4 10 30 4 1 2 4 Gun 13 | . . . . . . 4 4 1 2 2 Cannon 2 | . . . . . . . . . . 2 Launcher 44 | . 4 . . 4 10 26 . . . . Special . | . . . . . . . . . . . Kinetic 4 | . . . . . . 4 . . . . Thermal 5 | . . . . . . . . 1 2 2 Explosive 44 | . 4 . . 4 10 26 . . . . Electromagnetic 6 | . . . . . . . 4 . . 2 Robot Hit Streak 13 | . 3 . . 6 12 13 . 1 3 5 Robot Miss Streak 4 | . . . . . 1 2 4 . . 2 Penetration Max . | . . . . . . . . . . . Secondary Targets . | . . . . . . . . . . . Shots Hit Robots 120 | . 3 . . 3 9 33 24 10 35 3 Core Hits 69 | . 6 . . 6 6 32 9 3 5 2 Critical Kills 5 | . . . . . . 1 3 1 . . Critical Parts Destroyed 9 | . . . . . . . 3 1 4 1 Critical Strikes 17 | . . . . . . 2 6 2 6 1 Smash 15 | . . . . . . 1 6 2 5 1 Sever 2 | . . . . . . 1 . . 1 . Melee Attacks 102 | . . . . . 1 14 34 13 39 1 Impact 80 | . . . . . 1 5 29 10 34 1 Slashing 22 | . . . . . . 9 5 3 5 . Piercing . | . . . . . . . . . . . Sneak Attacks 15 | . . . . . 1 2 1 8 3 . Combat Hostiles . | . . . . . . . . . . . Follow-up Attacks 19 | . . . . . . 2 8 . 9 . Damage Inflicted 5893 | . 236 . . 235 341 1400 1139 866 1493 183 Guns 191 | . . . . . . 51 42 19 38 41 Cannons 24 | . . . . . . . . . . 24 Explosions 1711 | . 236 . . 223 307 868 . . . 77 Melee 3955 | . . . . . 34 481 1097 847 1455 41 Ramming 12 | . . . . 12 . . . . . . Kinetic 51 | . . . . . . 51 . . . . Thermal 158 | . . . . . . . . 19 38 101 Explosive 1634 | . 236 . . 223 307 868 . . . . Electromagnetic 83 | . . . . . . . 42 . . 41 Impact 3432 | . . . . . 34 248 909 847 1353 41 Slashing 523 | . . . . . . 233 188 . 102 . Piercing . | . . . . . . . . . . . Highest Corruption 30 | . . . . . . 6 14 . 30 30 Average Corruption 24 | . . . . . . 3 10 . 28 30 Corruption Purged . | . . . . . . . . . . . Corruption Blocked . | . . . . . . . . . . . Effects 100 | . . . . . . . 21 . 23 56 Message Errors 25 | . . . . . . . 3 . 9 13 Matter Fused 17 | . . . . . . . 5 . 2 10 Heat Flow Errors 16 | . . . . . . . 4 . 3 9 Energy Discharges 14 | . . . . . . . 3 . . 11 Parts Rejected 1 | . . . . . . . . . . 1 Data Loss (minor) 14 | . . . . . . . 5 . 3 6 Data Loss (major) 5 | . . . . . . . . . 3 2 Misfires 3 | . . . . . . . . . 1 2 Alerts 1 | . . . . . . . . . . 1 Misdirections 4 | . . . . . . . 1 . 2 1 Overload Shots . | . . . . . . . . . . . Overflow Damage 1293 | . . . . . 9 103 273 403 464 41 Projectiles . | . . . . . . . . . . . Explosions 24 | . . . . . . 24 . . . . Melee 1269 | . . . . . 9 79 273 403 464 41 Knockbacks 8 | . . . . 1 . . 2 2 2 1 Impact 8 | . . . . 1 . . 2 2 2 1 Kinetic . | . . . . . . . . . . . Secondary . | . . . . . . . . . . . Self-Inflicted Damage 232 | . . . . 51 . 144 . . . 37 Shots 10 | . . . . 3 . 6 . . . 1 Rammed 1 | . . . . 1 . . . . . . Targets Rammed 1 | . . . . 1 . . . . . . Kicked . | . . . . . . . . . . . Crushed . | . . . . . . . . . . . Highest Temperature 262 | . 12 . . 18 39 21 208 52 244 262 Average Temperature 51 | . 8 . . 14 21 8 74 31 24 105 Received Heat Transfer 1140 | . 24 . . 45 117 180 270 . 336 168 Siege Activations . | . . . . . . . . . . . Martial Activations . | . . . . . . . . . . . Shielding Activations . | . . . . . . . . . . . Robots Disrupted . | . . . . . . . . . . . Combat Hostiles . | . . . . . . . . . . . Robots Corrupted 10 | . . . . . 1 . 2 2 4 1 Combat Hostiles 4 | . . . . . . . . . 3 1 Parts Fried 26 | . . . . . . 1 3 14 5 3 Impact Corruptions 40 | . . . . . 1 3 9 11 14 2 Robots Melted . | . . . . . . . . . . . Combat Hostiles . | . . . . . . . . . . . Parts Melted . | . . . . . . . . . . . Heat Transferred 198 | . . . . . . . . 37 74 87 Parts Sabotaged . | . . . . . . . . . . . Parts Stolen . | . . . . . . . . . . . Parts Stripped . | . . . . . . . . . . . Power Chain Reactions 1 | . . . . . . . . . . 1 Alert | -11 -10 -10 -10 -9 -8 -8 -7 -6 -5 -5 ------- Run | Yrd Mat Min Exi Min Mat Sto Fac Fac Fac Upp Maximum Alert Level 1 | . . . . . . 1 . . . . Low Security (%) 97 | 100 100 100 . 100 100 79 100 100 100 . Level 1 2 | . . . . . . 20 . . . . Level 2 . | . . . . . . . . . . . Level 3 . | . . . . . . . . . . . Level 4 . | . . . . . . . . . . . Level 5 . | . . . . . . . . . . . High Security . | . . . . . . . . . . . Max Security . | . . . . . . . . . . . Peak Influence 233 | . 73 20 . 93 58 233 96 16 67 . Initial 96 | . . 20 . . 27 15 96 16 2 . Average 26 | . 18 18 . 77 17 89 24 2 7 . Influence Increases 1199 | . 73 . . 93 73 447 204 47 217 45 Destroy 0b10 Robot/C 520 | . 20 . . 60 20 200 120 . 80 20 Destroy 0b10 Robot/NC 140 | . 10 . . . 5 35 25 45 20 . Destroy Leader 144 | . 4 . . 10 10 52 44 2 12 10 Disable Machine 75 | . 15 . . . 15 45 . . . . Destroy Structure 185 | . 24 . . 23 23 115 . . . . Lose Combat Pursuer 135 | . . . . . . . 15 . 105 15 Influence Decreases 1184 | . 20 43 10 20 108 272 383 74 200 54 Entered New Map 262 | . . 33 10 . 46 23 117 18 5 10 Time Decay 629 | . 20 10 . 20 52 139 222 56 80 30 Lost Part 283 | . . . . . 10 110 39 . 110 14 Lost Ally 10 | . . . . . . . 5 . 5 . Squads Dispatched 6 | . . . . . . 3 2 . 1 . Investigation . | . . . . . . . . . . . Extermination 3 | . . . . . . . 2 . 1 . Reinforcement 1 | . . . . . . 1 . . . . Assault 2 | . . . . . . 2 . . . . Garrison . | . . . . . . . . . . . Intercept . | . . . . . . . . . . . Searches Triggered . | . . . . . . . . . . . Construction Impeded . | . . . . . . . . . . . Haulers Reinforced . | . . . . . . . . . . . Active Scanning Responses . | . . . . . . . . . . . Cargo Convoy Interrupts . | . . . . . . . . . . . Stealth | -11 -10 -10 -10 -9 -8 -8 -7 -6 -5 -5 --------- Run | Yrd Mat Min Exi Min Mat Sto Fac Fac Fac Upp Distress Signals 5 | . . . . . . 2 1 . 2 . Communications Jammed . | . . . . . . . . . . . Distress Signals . | . . . . . . . . . . . Times Spotted 66 | . 5 . . 3 8 18 11 1 17 3 Peak Tracking Total 7 | . 3 . . 3 7 5 5 1 6 1 Tactical Retreats 6 | . . . . . . . 1 . 4 1 Traps | -11 -10 -10 -10 -9 -8 -8 -7 -6 -5 -5 ------- Run | Yrd Mat Min Exi Min Mat Sto Fac Fac Fac Upp Traps Triggered 5 | . . . . . . 1 3 . 1 . Indirectly . | . . . . . . . . . . . Trap Hack Attempts . | . . . . . . . . . . . Triggered . | . . . . . . . . . . . Disarmed . | . . . . . . . . . . . Reprogrammed . | . . . . . . . . . . . Reused . | . . . . . . . . . . . Traps Extracted . | . . . . . . . . . . . Installed . | . . . . . . . . . . . Triggered . | . . . . . . . . . . . Machines | -11 -10 -10 -10 -9 -8 -8 -7 -6 -5 -5 ---------- Run | Yrd Mat Min Exi Min Mat Sto Fac Fac Fac Upp Machines Disabled 5 | . 1 . . . 1 3 . . . . Max in Single Turn 1 | . 1 . . . 1 1 . . . . Machines Repaired . | . . . . . . . . . . . Machines Dismantled . | . . . . . . . . . . . Machines Sabotaged . | . . . . . . . . . . . Overloaded Fab Kills . | . . . . . . . . . . . Hacking | -11 -10 -10 -10 -9 -8 -8 -7 -6 -5 -5 --------- Run | Yrd Mat Min Exi Min Mat Sto Fac Fac Fac Upp Machines Accessed 6 | . . . 4 . . 1 . . 1 . Terminals 1 | . . . . . . 1 . . . . Fabricators . | . . . . . . . . . . . Repair Stations 1 | . . . . . . . . . 1 . Recycling Units . | . . . . . . . . . . . Scanalyzers . | . . . . . . . . . . . Garrison Access . | . . . . . . . . . . . Total Hacks 54 | . . . 49 . . 3 . . 2 . Successful 52 | . . . 49 . . 1 . . 2 . Failed 2 | . . . . . . 2 . . . . Catastrophic . | . . . . . . . . . . . Database Lockouts . | . . . . . . . . . . . Manual 1 | . . . 1 . . . . . . . Terminals 3 | . . . . . . 3 . . . . Fabricators . | . . . . . . . . . . . Repair Stations 2 | . . . . . . . . . 2 . Recycling Units . | . . . . . . . . . . . Scanalyzers . | . . . . . . . . . . . Garrison Access . | . . . . . . . . . . . Terminal Hacks 50 | . . . 49 . . 1 . . . . Record 49 | . . . 49 . . . . . . . Open Door 1 | . . . . . . 1 . . . . Fabricator Hacks . | . . . . . . . . . . . Repair Station Hacks 2 | . . . . . . . . . 2 . Scan Component 1 | . . . . . . . . . 1 . Repair 1 | . . . . . . . . . 1 . Recycling Unit Hacks . | . . . . . . . . . . . Scanalyzer . | . . . . . . . . . . . Garrison Access Hacks . | . . . . . . . . . . . Unauthorized Hacks . | . . . . . . . . . . . Terminals . | . . . . . . . . . . . Fabricators . | . . . . . . . . . . . Repair Stations . | . . . . . . . . . . . Recycling Units . | . . . . . . . . . . . Scanalyzers . | . . . . . . . . . . . Garrison Access . | . . . . . . . . . . . Data Cores Recovered . | . . . . . . . . . . . Used . | . . . . . . . . . . . Hacking Detections 1 | . . . . . . 1 . . . . Full Trace Events . | . . . . . . . . . . . Feedback Events . | . . . . . . . . . . . Feedback Blocked . | . . . . . . . . . . . Robot Schematics Acquired . | . . . . . . . . . . . Robots Built . | . . . . . . . . . . . Authchips . | . . . . . . . . . . . Time . | . . . . . . . . . . . Total Robot Build Rating . | . . . . . . . . . . . Part Schematics Acquired . | . . . . . . . . . . . Parts Built . | . . . . . . . . . . . Authchips . | . . . . . . . . . . . Time . | . . . . . . . . . . . Total Part Build Rating . | . . . . . . . . . . . Parts Repaired 1 | . . . . . . . . . 1 . Time 38 | . . . . . . . . . 38 . Parts Recycled . | . . . . . . . . . . . Recycled Matter . | . . . . . . . . . . . Retrieved Matter . | . . . . . . . . . . . Retrieved Components . | . . . . . . . . . . . Parts Scanalyzed . | . . . . . . . . . . . Part Schematics Acquired . | . . . . . . . . . . . Parts Damaged . | . . . . . . . . . . . Bothacking | -11 -10 -10 -10 -9 -8 -8 -7 -6 -5 -5 ------------ Run | Yrd Mat Min Exi Min Mat Sto Fac Fac Fac Upp Used RIF Installer . | . . . . . . . . . . . Robots Hacked . | . . . . . . . . . . . Non-combat . | . . . . . . . . . . . Combat . | . . . . . . . . . . . Robot Hacks Applied . | . . . . . . . . . . . Relay Couplers Released . | . . . . . . . . . . . Fabnet Peak Effective % . | . . . . . . . . . . . Robots Rewired . | . . . . . . . . . . . Allies Hacked . | . . . . . . . . . . . Hacks Repelled . | . . . . . . . . . . . Allies | -11 -10 -10 -10 -9 -8 -8 -7 -6 -5 -5 -------- Run | Yrd Mat Min Exi Min Mat Sto Fac Fac Fac Upp Total Allies 2 | . . . . . . 2 . . . . Largest Group 2 | . . . . . . 2 . . . . Highest-Rated Group 62 | . . . . . . 62 . . . . Highest-Rated Ally 31 | . . . . . . 31 . . . . Total Orders . | . . . . . . . . . . . Ally Attacks 8 | . . . . . . 8 . . . . Total Damage 105 | . . . . . . 105 . . . . Kills . | . . . . . . . . . . . Allies Corrupted . | . . . . . . . . . . . Allies Melted . | . . . . . . . . . . . Intel | -11 -10 -10 -10 -9 -8 -8 -7 -6 -5 -5 ------- Run | Yrd Mat Min Exi Min Mat Sto Fac Fac Fac Upp Active Infowar (turns) 1424 | . . . . . . . . 385 165 874 Triangulation 886 | . . . . . . . . . 12 874 ECM 538 | . . . . . . . . 385 153 . Robot Analysis Total . | . . . . . . . . . . . Derelict Logs Recovered 1 | . . . . . . . . . . 1 Drone Launches 9 | . . . . . . . 2 . 7 . Drone Recoveries 1 | . . . . . . . . . 1 . Exploration | -11 -10 -10 -10 -9 -8 -8 -7 -6 -5 -5 ------------- Run | Yrd Mat Min Exi Min Mat Sto Fac Fac Fac Upp Turns Passed 4673 | 74 108 22 556 46 194 418 1086 478 539 1152 Spaces Moved 2374 | 61 95 23 549 38 146 269 487 176 231 299 Core 35 | 10 . . . . . . . . . 25 Treads 277 | . . . . . . 2 229 . . 46 Legs 595 | . . . . . . . 69 176 123 227 Wheels 1467 | 51 95 23 549 38 146 267 189 . 108 1 Hover . | . . . . . . . . . . . Flight . | . . . . . . . . . . . Fastest Speed 50 | 50 100 100 100 100 96 110 95 190 110 140 Average Speed 172 | 91 100 100 100 100 110 116 192 238 159 379 Slowest Speed 900 | 100 100 100 100 100 115 240 260 330 260 900 Overloaded Moves . | . . . . . . . . . . . Propulsion Burnouts . | . . . . . . . . . . . Robots Hopped . | . . . . . . . . . . . Potential Cave-ins . | . . . . . . . . . . . Cave-ins Triggered . | . . . . . . . . . . . Exploration Rate (%) 24 | 4 20 8 92 12 16 45 11 6 8 43 Regions Visited 10 Branch Regions 5 Pre-discovered Areas 1 | . . . 1 . . . . . . . Known Exits Taken . | . . . . . . . . . . . Unknown Exits Taken 10 | 1 1 1 1 1 1 1 1 1 1 . Scrap Searched 1 | . . . . . . . . . . 1 Spaces Dug . | . . . . . . . . . . . Terrain Destroyed 223 | . 22 . . 40 38 116 . . . 7 Melee . | . . . . . . . . . . . Projectile . | . . . . . . . . . . . AOE 223 | . 22 . . 40 38 116 . . . 7 Terrain Rammed . | . . . . . . . . . . . Walls Destroyed . | . . . . . . . . . . . Machines Disabled . | . . . . . . . . . . . Actions | -11 -10 -10 -10 -9 -8 -8 -7 -6 -5 -5 --------- Run | Yrd Mat Min Exi Min Mat Sto Fac Fac Fac Upp Total 2759 | 78 104 22 556 42 167 325 582 211 356 316 Wait 85 | . . . . . . . 2 6 77 . Move 2364 | 60 94 22 548 37 145 268 486 175 230 299 Hop . | . . . . . . . . . . . Pick Up 76 | 12 4 . 3 2 7 13 19 10 3 3 Fast Attach 4 | . . . 1 . . 2 1 . . . Attach 63 | 6 . . 1 . 5 6 17 2 15 11 Detach 2 | . . . . . 2 . . . . . Swap 20 | . 2 . . . 1 3 7 7 . . Drop 19 | . 2 . 3 . 1 6 6 1 . . Fire 33 | . 2 . . 2 5 16 4 1 1 2 Melee 76 | . . . . . 1 11 24 9 30 1 Ram 1 | . . . . 1 . . . . . . Kick . | . . . . . . . . . . . Crush . | . . . . . . . . . . . Escape Stasis 16 | . . . . . . . 16 . . . Rewire . | . . . . . . . . . . . Trap . | . . . . . . . . . . . Miscellaneous . | . . . . . . . . . . . Route ------- -11/Scrapyard -10/Materials (discovered 2 exits: [*Min x2]) -10/Mines -10/Exiles -9/Mines -8/Materials -8/Storage -7/Factory -6/Factory -5/Factory -5/Upper Caves History --------- Turn | Location | Event 31 | -11/Scrapyard | Discovered new exit (range 15) 75 | -11/Scrapyard | Entered Materials 99 | -10/Materials | Discovered new exit (range 15) 149 | -10/Materials | Discovered new exit (range 14) 183 | -10/Materials | Entered Mines 198 | -10/Mines | Deemed a non-threat by the Exiles lab entrance 199 | -10/Mines | Discovered new exit (range 5) 205 | -10/Mines | Entered Exiles 244 | -10/Exiles | Met 8R-AWN 265 | -10/Exiles | Met EX-HEX 309 | -10/Exiles | Build established: Mutant 338 | -10/Exiles | Met EX-DEC 365 | -10/Exiles | Visited The Gauntlet 537 | -10/Exiles | Learned location of Zion (-6) 574 | -10/Exiles | Met EX-BIN 749 | -10/Exiles | Discovered new exit (range 14) 761 | -10/Exiles | Entered Mines 800 | -9/Mines | Discovered new exit (range 7) 807 | -9/Mines | Entered Materials 807 | -8/Materials | Evolved 4 slots: Power x1, Propulsion x2, Weapon x1 962 | -8/Materials | Discovered new exit (range 13) 1001 | -8/Materials | Entered Storage 1071 | -8/Storage | Met a pair of Derelict thieves 1375 | -8/Storage | Discovered new exit (range 12) 1419 | -8/Storage | Entered Factory 1419 | -7/Factory | Evolved 2 slots: Utility x2 1446 | -7/Factory | Lost 9 parts (3p3n3w) 2201 | -7/Factory | System corruption reached 10% 2261 | -7/Factory | Discovered new exit (range 10) 2307 | -7/Factory | Lost 7 parts (1p3n3u) 2505 | -7/Factory | Entered another Factory area 2505 | -6/Factory | Evolved 2 slots: Utility x1, Weapon x1 2622 | -6/Factory | Build established: Scavenger-Mutant 2974 | -6/Factory | Discovered new exit (range 5) 2983 | -6/Factory | Entered another Factory area 2983 | -5/Factory | Evolved 2 slots: Power x1, Utility x1 3065 | -5/Factory | Repaired Axe 3141 | -5/Factory | System corruption reached 10% 3190 | -5/Factory | System corruption reached 30% 3226 | -5/Factory | Lost 11 parts (4p2n4u1w) 3295 | -5/Factory | Build established: Gladiator 3389 | -5/Factory | Lost 6 allies 3407 | -5/Factory | Lost 3 parts (1n2u) 3504 | -5/Factory | Discovered new exit (range 11) 3522 | -5/Factory | Entered Upper Caves 3557 | -5/Upper Caves | Lost 10 parts (4n4u2w) 4248 | -5/Upper Caves | Encountered a Warlord checkpoint 4267 | -5/Upper Caves | Spotted B-75 Beast 4349 | -5/Upper Caves | Lost 3 allies 4387 | -5/Upper Caves | Lost 3 parts (1n2w) 4570 | -5/Upper Caves | Core integrity fell below 50% 4579 | -5/Upper Caves | Lost 3 parts (2u1w) 4587 | -5/Upper Caves | Build established: Mutant 4596 | -5/Upper Caves | Core integrity fell below 20% 4674 | -5/Upper Caves | Destroyed by B-75 Beast with Heavy Plasma Cannon Last Messages --------------- 04459_ Critical hit (Blast). 04468_ System corrupted: Heat flow error (+101). 04488_ System corrupted: Matter fused (-8). 04493_ Aluminum Leg destroyed. 04493_ Kinecellerator destroyed. 04493_ Acquired 1 matter. 04508_ System corrupted: FCS attempts to trigger Ion Cannon. 04508_ System corrupted: Ion Cannon misfires. 04526_ FZTI&HLSNN41 S2FBT1PD% GZ 04531_ Hrd. Light Armor Plating destroyed. 04531_ Adv. Cooling System destroyed. 04542_ System corrupted: Energy discharge (-32). 04548_ Ion Cannon destroyed. 04553_ Acquired 1 matter. 04566_ System corrupted: Matter fused (-9). 04567_ Acquired 4 matter. 04602_ Acquired 5 matter. 04635_ System corrupted: IFF burst signal emitted. 04652_ System corrupted: Energy discharge (-37). 04668_ Z5JTTH442ULT